[Event "Titled Tuesday Blitz March 28 Early 2023"]
[White "Hnydiuk, Aleksander"]
[Black "Kuchava, Ana"]
[WhiteFideId "1109057"]
[BlackFideId "13605348"]
[WhiteElo "2374"]
[BlackElo "2001"]
[Result "1-0"]
[Round "01"]
[TimeControl "180+2"]
[Date "2023.03.28"]
[WhiteClock "0:00:41"]
[BlackClock "0:00:01"]

1. Nf3 {[%clk 0:02:59]}  d5 {[%clk 0:02:56]} 2. d4 {[%clk 0:02:58]}  Nf6 {[%clk 0:02:52]} 3. c4 {[%clk 0:02:57]}  e6 {[%clk 0:02:49]} 4. g3 {[%clk 0:02:57]}  Bb4+ {[%clk 0:02:38]} 5. Bd2 {[%clk 0:02:56]}  Be7 {[%clk 0:02:35]} 6. Bg2 {[%clk 0:02:57]}  O-O {[%clk 0:02:25]} 7. O-O {[%clk 0:02:57]}  c6 {[%clk 0:02:19]} 8. Qc2 {[%clk 0:02:57]}  b6 {[%clk 0:02:17]} 9. Bf4 {[%clk 0:02:54]}  Bb7 {[%clk 0:02:14]} 10. Rd1 {[%clk 0:02:52]}  Nbd7 {[%clk 0:02:07]} 11. Ne5 {[%clk 0:02:45]}  Nxe5 {[%clk 0:02:04]} 12. dxe5 {[%clk 0:02:44]}  Nd7 {[%clk 0:02:03]} 13. e4 {[%clk 0:02:41]}  dxc4 {[%clk 0:01:59]} 14. Nd2 {[%clk 0:02:30]}  b5 {[%clk 0:01:51]} 15. b3 {[%clk 0:02:30]}  cxb3 {[%clk 0:01:50]} 16. Nxb3 {[%clk 0:02:29]}  Qc7 {[%clk 0:01:48]} 17. a4 {[%clk 0:02:29]}  a6 {[%clk 0:01:47]} 18. Qc3 {[%clk 0:02:22]}  Rfd8 {[%clk 0:01:41]} 19. Rac1 {[%clk 0:02:15]}  c5 {[%clk 0:01:26]} 20. Na5 {[%clk 0:02:14]}  b4 {[%clk 0:01:21]} 21. Qxb4 {[%clk 0:02:14]}  Rab8 {[%clk 0:00:45]} 22. Qc3 {[%clk 0:02:14]}  Ba8 {[%clk 0:00:39]} 23. h4 {[%clk 0:02:08]}  h6 {[%clk 0:00:39]} 24. h5 {[%clk 0:02:06]}  Nb6 {[%clk 0:00:39]} 25. Qc2 {[%clk 0:01:38]}  Rxd1+ {[%clk 0:00:23]} 26. Rxd1 {[%clk 0:01:37]}  Rd8 {[%clk 0:00:24]} 27. Rxd8+ {[%clk 0:01:30]}  Qxd8 {[%clk 0:00:24]} 28. Be3 {[%clk 0:01:27]}  Qc7 {[%clk 0:00:15]} 29. Nc4 {[%clk 0:01:19]}  Nxc4 {[%clk 0:00:13]} 30. Qxc4 {[%clk 0:01:20]}  Bb7 {[%clk 0:00:12]} 31. Qc3 {[%clk 0:01:15]}  Qc6 {[%clk 0:00:09]} 32. a5 {[%clk 0:01:11]}  Qb5 {[%clk 0:00:09]} 33. Bf1 {[%clk 0:01:00]}  Qb4 {[%clk 0:00:09]} 34. Qxb4 {[%clk 0:00:46]}  cxb4 {[%clk 0:00:10]} 35. f3 {[%clk 0:00:47]}  Kf8 {[%clk 0:00:07]} 36. Bc4 {[%clk 0:00:46]}  Ke8 {[%clk 0:00:07]} 37. Kf2 {[%clk 0:00:47]}  Kd7 {[%clk 0:00:07]} 38. Ke2 {[%clk 0:00:47]}  Kc7 {[%clk 0:00:06]} 39. Kd3 {[%clk 0:00:47]}  Kc6 {[%clk 0:00:05]} 40. Kc2 {[%clk 0:00:47]}  Bc5 {[%clk 0:00:05]} 41. Bd2 {[%clk 0:00:46]}  Bc8 {[%clk 0:00:04]} 42. Kb3 {[%clk 0:00:45]}  Bd7 {[%clk 0:00:02]} 43. Bxb4 {[%clk 0:00:45]}  Bxb4 {[%clk 0:00:02]} 44. Kxb4 {[%clk 0:00:46]}  Bc8 {[%clk 0:00:03]} 45. f4 {[%clk 0:00:44]}  Bb7 {[%clk 0:00:02]} 46. f5 {[%clk 0:00:44]}  Bc8 {[%clk 0:00:02]} 47. g4 {[%clk 0:00:44]}  Bd7 {[%clk 0:00:01]} 48. g5 {[%clk 0:00:41]} 1-0


[Site "https://www.chess.com"]

[Event "Titled Tuesday Blitz March 28 Early 2023"]
[White "MKlose11"]
[Black "Sankalan Shah"]
[BlackFideId "25600362"]
[WhiteElo "2569"]
[BlackElo "2118"]
[Result "1-0"]
[Round "01"]
[TimeControl "180+2"]
[Date "2023.03.28"]
[WhiteClock "0:02:48"]
[BlackClock "0:02:28"]

1. e4 {[%clk 0:02:59]}  e5 {[%clk 0:02:59]} 2. Nf3 {[%clk 0:02:58]}  Nc6 {[%clk 0:02:59]} 3. d4 {[%clk 0:02:56]}  exd4 {[%clk 0:02:59]} 4. Bc4 {[%clk 0:02:57]}  Nf6 {[%clk 0:02:57]} 5. O-O {[%clk 0:02:56]}  Bc5 {[%clk 0:02:43]} 6. e5 {[%clk 0:02:54]}  d5 {[%clk 0:02:41]} 7. exf6 {[%clk 0:02:54]}  dxc4 {[%clk 0:02:42]} 8. fxg7 {[%clk 0:02:54]}  Rg8 {[%clk 0:02:42]} 9. Bg5 {[%clk 0:02:50]}  Qd6 {[%clk 0:02:29]} 10. Nbd2 {[%clk 0:02:48]}  Be6 {[%clk 0:02:28]} 11. Ne4 {[%clk 0:02:48]}  Qd5 {[%clk 0:02:28]} 12. Nf6+ {[%clk 0:02:48]} 1-0


[Site "https://www.chess.com"]

[Event "Titled Tuesday Blitz March 28 Early 2023"]
[White "Barria Santos, Jose Guilherme"]
[Black "Kaidanov, Gregory"]
[WhiteFideId "1939300"]
[BlackFideId "2008564"]
[WhiteElo "2301"]
[BlackElo "2547"]
[Result "0-1"]
[Round "01"]
[TimeControl "180+2"]
[Date "2023.03.28"]
[WhiteClock "0:00:09"]
[BlackClock "0:00:28"]

1. e4 {[%clk 0:02:59]}  e5 {[%clk 0:02:59]} 2. Nf3 {[%clk 0:02:58]}  Nc6 {[%clk 0:03:00]} 3. Bb5 {[%clk 0:02:58]}  a6 {[%clk 0:03:00]} 4. Ba4 {[%clk 0:02:58]}  Nf6 {[%clk 0:03:00]} 5. O-O {[%clk 0:02:59]}  Nxe4 {[%clk 0:02:59]} 6. Re1 {[%clk 0:02:55]}  Nc5 {[%clk 0:02:59]} 7. Bxc6 {[%clk 0:02:52]}  dxc6 {[%clk 0:03:00]} 8. Nxe5 {[%clk 0:02:52]}  Be7 {[%clk 0:03:00]} 9. Nc3 {[%clk 0:02:51]}  O-O {[%clk 0:02:59]} 10. d4 {[%clk 0:02:49]}  Ne6 {[%clk 0:02:59]} 11. d5 {[%clk 0:02:41]}  cxd5 {[%clk 0:02:59]} 12. Nxd5 {[%clk 0:02:41]}  Bd6 {[%clk 0:02:44]} 13. Nf3 {[%clk 0:02:38]}  c6 {[%clk 0:02:37]} 14. Ne3 {[%clk 0:02:37]}  Bc5 {[%clk 0:02:28]} 15. b3 {[%clk 0:02:31]}  Nf4 {[%clk 0:02:16]} 16. Bb2 {[%clk 0:02:23]}  Be6 {[%clk 0:02:15]} 17. Qxd8 {[%clk 0:01:56]}  Raxd8 {[%clk 0:02:12]} 18. Rad1 {[%clk 0:01:57]}  h6 {[%clk 0:02:02]} 19. Be5 {[%clk 0:01:33]}  Ng6 {[%clk 0:02:01]} 20. Bg3 {[%clk 0:01:27]}  Bb4 {[%clk 0:01:57]} 21. Rxd8 {[%clk 0:01:18]}  Rxd8 {[%clk 0:01:57]} 22. Rd1 {[%clk 0:01:18]}  Rxd1+ {[%clk 0:01:52]} 23. Nxd1 {[%clk 0:01:19]}  Ne7 {[%clk 0:01:48]} 24. Nd4 {[%clk 0:01:17]}  Bd7 {[%clk 0:01:47]} 25. c3 {[%clk 0:01:15]}  Bc5 {[%clk 0:01:45]} 26. Nf3 {[%clk 0:01:08]}  Nd5 {[%clk 0:01:42]} 27. c4 {[%clk 0:01:07]}  Nb4 {[%clk 0:01:40]} 28. Nc3 {[%clk 0:01:08]}  Bf5 {[%clk 0:01:39]} 29. a3 {[%clk 0:01:03]}  Nc2 {[%clk 0:01:37]} 30. Nb1 {[%clk 0:01:00]}  Nxa3 {[%clk 0:01:35]} 31. Nxa3 {[%clk 0:01:00]}  Bxa3 {[%clk 0:01:35]} 32. Kf1 {[%clk 0:01:00]}  Bc5 {[%clk 0:01:29]} 33. Ke1 {[%clk 0:00:59]}  Bc2 {[%clk 0:01:26]} 34. Nd2 {[%clk 0:00:58]}  Bb4 {[%clk 0:01:25]} 35. Bc7 {[%clk 0:00:56]}  Bxb3 {[%clk 0:01:24]} 36. Ke2 {[%clk 0:00:55]}  Bxd2 {[%clk 0:01:22]} 37. Kxd2 {[%clk 0:00:55]}  Bxc4 {[%clk 0:01:23]} 38. Kc3 {[%clk 0:00:56]}  Bf1 {[%clk 0:01:23]} 39. g3 {[%clk 0:00:56]}  f6 {[%clk 0:01:23]} 40. Kb4 {[%clk 0:00:56]}  Kf7 {[%clk 0:01:21]} 41. Kc5 {[%clk 0:00:56]}  Bh3 {[%clk 0:01:09]} 42. Kb6 {[%clk 0:00:56]}  Bc8 {[%clk 0:01:08]} 43. Bf4 {[%clk 0:00:49]}  g5 {[%clk 0:01:07]} 44. Bd2 {[%clk 0:00:48]}  Bg4 {[%clk 0:00:52]} 45. Kxb7 {[%clk 0:00:47]}  Bf3 {[%clk 0:00:52]} 46. Kxa6 {[%clk 0:00:47]}  Ke6 {[%clk 0:00:53]} 47. Kb6 {[%clk 0:00:47]}  Kf5 {[%clk 0:00:54]} 48. Bc3 {[%clk 0:00:42]}  Ke6 {[%clk 0:00:42]} 49. Kc5 {[%clk 0:00:42]}  Bd5 {[%clk 0:00:42]} 50. Kd4 {[%clk 0:00:42]}  f5 {[%clk 0:00:43]} 51. Ke3 {[%clk 0:00:42]}  c5 {[%clk 0:00:42]} 52. f4 {[%clk 0:00:39]}  g4 {[%clk 0:00:41]} 53. Bg7 {[%clk 0:00:39]}  h5 {[%clk 0:00:41]} 54. Bc3 {[%clk 0:00:37]}  Bc6 {[%clk 0:00:40]} 55. Kd3 {[%clk 0:00:38]}  Kd5 {[%clk 0:00:41]} 56. Bg7 {[%clk 0:00:37]}  Bb5+ {[%clk 0:00:41]} 57. Kc3 {[%clk 0:00:38]}  Ke4 {[%clk 0:00:41]} 58. Bf8 {[%clk 0:00:37]}  c4 {[%clk 0:00:41]} 59. Kb4 {[%clk 0:00:34]}  Ba6 {[%clk 0:00:41]} 60. Ka5 {[%clk 0:00:32]}  Bc8 {[%clk 0:00:41]} 61. Kb4 {[%clk 0:00:31]}  Be6 {[%clk 0:00:41]} 62. Kc3 {[%clk 0:00:25]}  Kf3 {[%clk 0:00:41]} 63. Be7 {[%clk 0:00:21]}  Kg2 {[%clk 0:00:41]} 64. Bh4 {[%clk 0:00:22]}  Kxh2 {[%clk 0:00:41]} 65. Kd2 {[%clk 0:00:22]}  Kg2 {[%clk 0:00:41]} 66. Kc3 {[%clk 0:00:23]}  Kf3 {[%clk 0:00:41]} 67. Kc2 {[%clk 0:00:23]}  Ke4 {[%clk 0:00:40]} 68. Kc3 {[%clk 0:00:24]}  Ke3 {[%clk 0:00:40]} 69. Kc2 {[%clk 0:00:25]}  Kd4 {[%clk 0:00:40]} 70. Bf6+ {[%clk 0:00:25]}  Kd5 {[%clk 0:00:39]} 71. Bh4 {[%clk 0:00:26]}  Kc5 {[%clk 0:00:38]} 72. Bf6 {[%clk 0:00:27]}  Kb4 {[%clk 0:00:38]} 73. Bh4 {[%clk 0:00:28]}  Bd7 {[%clk 0:00:38]} 74. Bg5 {[%clk 0:00:29]}  Ba4+ {[%clk 0:00:37]} 75. Kc1 {[%clk 0:00:29]}  c3 {[%clk 0:00:37]} 76. Bh4 {[%clk 0:00:30]}  Kc4 {[%clk 0:00:37]} 77. Bg5 {[%clk 0:00:31]}  Kd3 {[%clk 0:00:37]} 78. Bh4 {[%clk 0:00:32]}  Ke2 {[%clk 0:00:36]} 79. Bg5 {[%clk 0:00:32]}  Kf3 {[%clk 0:00:35]} 80. Bh4 {[%clk 0:00:33]}  Kg2 {[%clk 0:00:35]} 81. Kb1 {[%clk 0:00:34]}  Bd1 {[%clk 0:00:34]} 82. Kc1 {[%clk 0:00:34]}  Bb3 {[%clk 0:00:33]} 83. Kb1 {[%clk 0:00:35]}  Kf3 {[%clk 0:00:30]} 84. Kc1 {[%clk 0:00:36]}  Ke3 {[%clk 0:00:30]} 85. Kb1 {[%clk 0:00:37]}  Kd2 {[%clk 0:00:30]} 86. Ka1 {[%clk 0:00:09]}  c2 {[%clk 0:00:28]} 0-1


[Site "https://www.chess.com"]

[Event "Titled Tuesday Blitz March 28 Early 2023"]
[White "Jain Kashish Manoj"]
[Black "Sanchez, Robert"]
[WhiteFideId "35081098"]
[BlackFideId "2034360"]
[WhiteElo "2191"]
[BlackElo "2149"]
[Result "1-0"]
[Round "01"]
[TimeControl "180+2"]
[Date "2023.03.28"]
[WhiteClock "0:01:53"]
[BlackClock "0:02:19"]

1. Nf3 {[%clk 0:03:00]}  Nf6 {[%clk 0:02:58]} 2. g3 {[%clk 0:03:01]}  d5 {[%clk 0:02:58]} 3. Bg2 {[%clk 0:02:59]}  Nc6 {[%clk 0:02:58]} 4. O-O {[%clk 0:02:48]}  e5 {[%clk 0:02:56]} 5. d3 {[%clk 0:02:47]}  Bg4 {[%clk 0:02:55]} 6. h3 {[%clk 0:02:47]}  Be6 {[%clk 0:02:55]} 7. Nc3 {[%clk 0:02:35]}  h6 {[%clk 0:02:54]} 8. e4 {[%clk 0:02:30]}  Qd7 {[%clk 0:02:44]} 9. exd5 {[%clk 0:02:18]}  Nxd5 {[%clk 0:02:44]} 10. Nxd5 {[%clk 0:02:18]}  Bxd5 {[%clk 0:02:45]} 11. Re1 {[%clk 0:02:18]}  f6 {[%clk 0:02:39]} 12. d4 {[%clk 0:02:08]}  Bxf3 {[%clk 0:02:30]} 13. Bxf3 {[%clk 0:02:01]}  Nxd4 {[%clk 0:02:27]} 14. Bxb7 {[%clk 0:02:00]}  Rb8 {[%clk 0:02:25]} 15. Bg2 {[%clk 0:02:00]}  Bd6 {[%clk 0:02:19]} 16. Qxd4 {[%clk 0:01:53]} 1-0


[Site "https://www.chess.com"]

[Event "Titled Tuesday Blitz March 28 Early 2023"]
[White "Baruch, Liam"]
[Black "Staudenhocker43"]
[WhiteFideId "14322064"]
[WhiteElo "2148"]
[BlackElo "2562"]
[Result "1/2-1/2"]
[Round "01"]
[TimeControl "180+2"]
[Date "2023.03.28"]
[WhiteClock "0:00:07"]
[BlackClock "0:00:15"]

1. e4 {[%clk 0:03:00]}  e5 {[%clk 0:02:59]} 2. Nf3 {[%clk 0:03:01]}  Nf6 {[%clk 0:02:59]} 3. Nxe5 {[%clk 0:03:00]}  d6 {[%clk 0:02:59]} 4. Nf3 {[%clk 0:02:59]}  Nxe4 {[%clk 0:02:59]} 5. Qe2 {[%clk 0:02:55]}  Qe7 {[%clk 0:02:59]} 6. d4 {[%clk 0:02:53]}  d5 {[%clk 0:02:55]} 7. Bf4 {[%clk 0:02:43]}  Bf5 {[%clk 0:02:51]} 8. c3 {[%clk 0:02:34]}  c6 {[%clk 0:02:49]} 9. Nbd2 {[%clk 0:02:32]}  Nxd2 {[%clk 0:02:49]} 10. Qxe7+ {[%clk 0:02:32]}  Bxe7 {[%clk 0:02:50]} 11. Kxd2 {[%clk 0:02:31]}  Nd7 {[%clk 0:02:49]} 12. g3 {[%clk 0:02:21]}  O-O {[%clk 0:02:43]} 13. Bg2 {[%clk 0:02:19]}  Be4 {[%clk 0:02:41]} 14. Rhe1 {[%clk 0:02:04]}  Rfe8 {[%clk 0:02:40]} 15. Bh3 {[%clk 0:01:59]}  Nb6 {[%clk 0:02:33]} 16. Ne5 {[%clk 0:01:52]}  Bf6 {[%clk 0:02:20]} 17. b3 {[%clk 0:01:49]}  h6 {[%clk 0:02:02]} 18. Re2 {[%clk 0:01:37]}  Re7 {[%clk 0:01:40]} 19. a4 {[%clk 0:01:35]}  a5 {[%clk 0:01:37]} 20. f3 {[%clk 0:01:29]}  Bxe5 {[%clk 0:01:32]} 21. Bxe5 {[%clk 0:01:27]}  Bxf3 {[%clk 0:01:30]} 22. Rf2 {[%clk 0:01:18]}  Bh5 {[%clk 0:01:23]} 23. Bd6 {[%clk 0:01:15]}  Ree8 {[%clk 0:01:21]} 24. Bc5 {[%clk 0:01:15]}  Nc8 {[%clk 0:01:17]} 25. Re1 {[%clk 0:00:53]}  Rxe1 {[%clk 0:01:15]} 26. Kxe1 {[%clk 0:00:54]}  Ne7 {[%clk 0:00:55]} 27. Kd2 {[%clk 0:00:45]}  Re8 {[%clk 0:00:51]} 28. g4 {[%clk 0:00:30]}  Bg6 {[%clk 0:00:50]} 29. Re2 {[%clk 0:00:31]}  Be4 {[%clk 0:00:50]} 30. Bg2 {[%clk 0:00:31]}  Ng6 {[%clk 0:00:49]} 31. Bxe4 {[%clk 0:00:30]}  dxe4 {[%clk 0:00:47]} 32. Ke3 {[%clk 0:00:30]}  f6 {[%clk 0:00:43]} 33. Bb6 {[%clk 0:00:30]}  h5 {[%clk 0:00:40]} 34. gxh5 {[%clk 0:00:29]}  Ne7 {[%clk 0:00:40]} 35. Bxa5 {[%clk 0:00:28]}  Nd5+ {[%clk 0:00:39]} 36. Kd2 {[%clk 0:00:27]}  e3+ {[%clk 0:00:38]} 37. Kd1 {[%clk 0:00:21]}  b6 {[%clk 0:00:37]} 38. Bb4 {[%clk 0:00:20]}  Nxb4 {[%clk 0:00:37]} 39. cxb4 {[%clk 0:00:21]}  Re4 {[%clk 0:00:36]} 40. Kc2 {[%clk 0:00:18]}  Rxd4 {[%clk 0:00:36]} 41. Rxe3 {[%clk 0:00:19]}  Rxb4 {[%clk 0:00:36]} 42. Re6 {[%clk 0:00:19]}  c5 {[%clk 0:00:36]} 43. Re7 {[%clk 0:00:18]}  Kh7 {[%clk 0:00:36]} 44. Rb7 {[%clk 0:00:18]}  Kh6 {[%clk 0:00:36]} 45. Kc3 {[%clk 0:00:17]}  f5 {[%clk 0:00:35]} 46. h3 {[%clk 0:00:16]}  f4 {[%clk 0:00:35]} 47. Rf7 {[%clk 0:00:16]}  Kxh5 {[%clk 0:00:34]} 48. Rxg7 {[%clk 0:00:16]}  Kh4 {[%clk 0:00:35]} 49. Kd3 {[%clk 0:00:13]}  Rxb3+ {[%clk 0:00:34]} 50. Ke4 {[%clk 0:00:13]}  Rb4+ {[%clk 0:00:34]} 51. Kf3 {[%clk 0:00:09]}  Rxa4 {[%clk 0:00:34]} 52. Rh7+ {[%clk 0:00:09]}  Kg5 {[%clk 0:00:34]} 53. Rg7+ {[%clk 0:00:09]}  Kf6 {[%clk 0:00:34]} 54. Rb7 {[%clk 0:00:10]}  Rb4 {[%clk 0:00:34]} 55. h4 {[%clk 0:00:10]}  b5 {[%clk 0:00:32]} 56. h5 {[%clk 0:00:10]}  Kg5 {[%clk 0:00:32]} 57. Rc7 {[%clk 0:00:11]}  c4 {[%clk 0:00:32]} 58. Rc5+ {[%clk 0:00:11]}  Kh6 {[%clk 0:00:32]} 59. Kxf4 {[%clk 0:00:10]}  c3+ {[%clk 0:00:32]} 60. Ke3 {[%clk 0:00:10]}  Rb3 {[%clk 0:00:30]} 61. Kd3 {[%clk 0:00:09]}  b4 {[%clk 0:00:30]} 62. Kc2 {[%clk 0:00:07]}  Rb2+ {[%clk 0:00:30]} 63. Kc1 {[%clk 0:00:07]}  Kg7 {[%clk 0:00:21]} 64. Rc6 {[%clk 0:00:06]}  Rh2 {[%clk 0:00:20]} 65. Rc4 {[%clk 0:00:06]}  Rb2 {[%clk 0:00:19]} 66. Rc6 {[%clk 0:00:06]}  Ra2 {[%clk 0:00:18]} 67. Rc4 {[%clk 0:00:06]}  Ra4 {[%clk 0:00:19]} 68. Kc2 {[%clk 0:00:05]}  Kh6 {[%clk 0:00:19]} 69. Kb3 {[%clk 0:00:04]}  Ra1 {[%clk 0:00:15]} 70. Kxb4 {[%clk 0:00:05]}  Kxh5 {[%clk 0:00:14]} 71. Kxc3 {[%clk 0:00:05]}  Rc1+ {[%clk 0:00:14]} 72. Kd4 {[%clk 0:00:06]}  Rxc4+ {[%clk 0:00:15]} 73. Kxc4 {[%clk 0:00:07]} 1/2-1/2


[Site "https://www.chess.com"]

[Event "Titled Tuesday Blitz March 28 Early 2023"]
[White "Krsnik Cohar, Ivan Vihor"]
[Black "Tarnowska, Aleksandra"]
[WhiteFideId "14520044"]
[BlackFideId "1180967"]
[WhiteElo "2414"]
[BlackElo "1776"]
[Result "1-0"]
[Round "01"]
[TimeControl "180+2"]
[Date "2023.03.28"]
[WhiteClock "0:00:27"]
[BlackClock "0:00:04"]

1. e4 {[%clk 0:03:00]}  c5 {[%clk 0:03:00]} 2. Ne2 {[%clk 0:02:59]}  e6 {[%clk 0:02:59]} 3. g3 {[%clk 0:03:00]}  Nc6 {[%clk 0:02:49]} 4. Bg2 {[%clk 0:03:00]}  d6 {[%clk 0:02:50]} 5. c3 {[%clk 0:03:00]}  Nf6 {[%clk 0:02:47]} 6. d4 {[%clk 0:03:00]}  cxd4 {[%clk 0:02:45]} 7. cxd4 {[%clk 0:03:01]}  d5 {[%clk 0:02:40]} 8. e5 {[%clk 0:02:54]}  Bb4+ {[%clk 0:02:38]} 9. Bd2 {[%clk 0:02:47]}  Bxd2+ {[%clk 0:02:34]} 10. Qxd2 {[%clk 0:02:39]}  Nd7 {[%clk 0:02:29]} 11. Nbc3 {[%clk 0:02:37]}  O-O {[%clk 0:02:23]} 12. O-O {[%clk 0:02:36]}  b6 {[%clk 0:02:17]} 13. f4 {[%clk 0:02:31]}  Ne7 {[%clk 0:02:07]} 14. f5 {[%clk 0:02:11]}  Nxf5 {[%clk 0:00:55]} 15. Nxd5 {[%clk 0:02:09]}  Rb8 {[%clk 0:00:51]} 16. Rad1 {[%clk 0:01:25]}  Bb7 {[%clk 0:00:44]} 17. Ne3 {[%clk 0:01:14]}  Nxe3 {[%clk 0:00:35]} 18. Qxe3 {[%clk 0:01:12]}  Bxg2 {[%clk 0:00:35]} 19. Kxg2 {[%clk 0:01:12]}  b5 {[%clk 0:00:20]} 20. d5 {[%clk 0:01:09]}  exd5 {[%clk 0:00:18]} 21. e6 {[%clk 0:01:01]}  Qe7 {[%clk 0:00:15]} 22. Nf4 {[%clk 0:00:46]}  fxe6 {[%clk 0:00:12]} 23. Nxd5 {[%clk 0:00:46]}  Qc5 {[%clk 0:00:08]} 24. Qxe6+ {[%clk 0:00:46]}  Kh8 {[%clk 0:00:07]} 25. Qxd7 {[%clk 0:00:39]}  Qc2+ {[%clk 0:00:05]} 26. Kh3 {[%clk 0:00:38]}  Rf2 {[%clk 0:00:03]} 27. Rxf2 {[%clk 0:00:35]}  Qxf2 {[%clk 0:00:04]} 28. Nf4 {[%clk 0:00:28]}  Qf3 {[%clk 0:00:04]} 29. Qd8+ {[%clk 0:00:27]}  Rxd8 {[%clk 0:00:04]} 30. Rxd8# {[%clk 0:00:27]} 1-0


[Site "https://www.chess.com"]

[Event "Titled Tuesday Blitz March 28 Early 2023"]
[White "dDobravcan"]
[Black "Drori, Saar"]
[BlackFideId "2812444"]
[WhiteElo "2141"]
[BlackElo "2322"]
[Result "0-1"]
[Round "01"]
[TimeControl "180+2"]
[Date "2023.03.28"]
[WhiteClock "0:00:01"]
[BlackClock "0:00:16"]

1. e4 {[%clk 0:02:59]}  c5 {[%clk 0:02:58]} 2. b4 {[%clk 0:02:58]}  cxb4 {[%clk 0:02:57]} 3. Bb2 {[%clk 0:02:58]}  d5 {[%clk 0:02:53]} 4. exd5 {[%clk 0:02:57]}  Nf6 {[%clk 0:02:53]} 5. d4 {[%clk 0:02:53]}  Nxd5 {[%clk 0:02:52]} 6. Nf3 {[%clk 0:02:45]}  Nc6 {[%clk 0:02:45]} 7. Bc4 {[%clk 0:02:34]}  e6 {[%clk 0:02:44]} 8. O-O {[%clk 0:02:35]}  Be7 {[%clk 0:02:43]} 9. a3 {[%clk 0:02:32]}  bxa3 {[%clk 0:02:39]} 10. Nxa3 {[%clk 0:02:31]}  O-O {[%clk 0:02:38]} 11. Bb3 {[%clk 0:02:20]}  b6 {[%clk 0:02:01]} 12. c4 {[%clk 0:02:18]}  Nf6 {[%clk 0:02:00]} 13. d5 {[%clk 0:02:14]}  exd5 {[%clk 0:01:58]} 14. cxd5 {[%clk 0:02:14]}  Nb4 {[%clk 0:01:56]} 15. Qd4 {[%clk 0:01:48]}  Nbxd5 {[%clk 0:01:40]} 16. Rad1 {[%clk 0:01:41]}  Bb7 {[%clk 0:01:37]} 17. Ne5 {[%clk 0:01:31]}  Re8 {[%clk 0:00:56]} 18. Qh4 {[%clk 0:01:20]}  Bxa3 {[%clk 0:00:54]} 19. Nxf7 {[%clk 0:01:01]}  Kxf7 {[%clk 0:00:51]} 20. Bxa3 {[%clk 0:01:00]}  Re4 {[%clk 0:00:18]} 21. Qg3 {[%clk 0:00:52]}  Qb8 {[%clk 0:00:15]} 22. Qd3 {[%clk 0:00:45]}  Qe5 {[%clk 0:00:14]} 23. h3 {[%clk 0:00:32]}  Rd8 {[%clk 0:00:13]} 24. Rd2 {[%clk 0:00:24]}  Qg5 {[%clk 0:00:13]} 25. Rfd1 {[%clk 0:00:22]}  Ke8 {[%clk 0:00:13]} 26. Re2 {[%clk 0:00:19]}  Qxg2+ {[%clk 0:00:12]} 27. Kxg2 {[%clk 0:00:15]}  Nf4+ {[%clk 0:00:13]} 28. Kf3 {[%clk 0:00:12]}  Rxd3+ {[%clk 0:00:13]} 29. Rxd3 {[%clk 0:00:10]}  Nxd3 {[%clk 0:00:13]} 30. Rxe4+ {[%clk 0:00:09]}  Nxe4 {[%clk 0:00:14]} 31. Ke3 {[%clk 0:00:09]}  Ndc5 {[%clk 0:00:13]} 32. Bc2 {[%clk 0:00:08]}  Nf6 {[%clk 0:00:13]} 33. Bb2 {[%clk 0:00:07]}  Be4 {[%clk 0:00:13]} 34. Bd1 {[%clk 0:00:05]}  Bf5 {[%clk 0:00:14]} 35. h4 {[%clk 0:00:04]}  Be6 {[%clk 0:00:15]} 36. h5 {[%clk 0:00:04]}  Kf7 {[%clk 0:00:15]} 37. Kf4 {[%clk 0:00:03]}  Bb3 {[%clk 0:00:15]} 38. Be2 {[%clk 0:00:01]}  a5 {[%clk 0:00:16]} 0-1


[Site "https://www.chess.com"]

[Event "Titled Tuesday Blitz March 28 Early 2023"]
[White "Winkels, Marcel"]
[Black "Girya, Olga"]
[WhiteFideId "1003887"]
[BlackFideId "4195752"]
[WhiteElo "1900"]
[BlackElo "2263"]
[Result "1-0"]
[Round "01"]
[TimeControl "180+2"]
[Date "2023.03.28"]
[WhiteClock "0:00:19"]
[BlackClock "0:00:01"]

1. e4 {[%clk 0:02:59]}  e5 {[%clk 0:02:56]} 2. Nf3 {[%clk 0:02:58]}  Nc6 {[%clk 0:02:56]} 3. Bb5 {[%clk 0:02:55]}  a6 {[%clk 0:02:56]} 4. Ba4 {[%clk 0:02:54]}  Nf6 {[%clk 0:02:56]} 5. d3 {[%clk 0:02:53]}  Bc5 {[%clk 0:02:55]} 6. O-O {[%clk 0:02:52]}  d6 {[%clk 0:02:54]} 7. h3 {[%clk 0:02:52]}  O-O {[%clk 0:02:51]} 8. Nc3 {[%clk 0:02:44]}  h6 {[%clk 0:02:49]} 9. Nd5 {[%clk 0:02:42]}  Nxd5 {[%clk 0:02:47]} 10. exd5 {[%clk 0:02:42]}  Ne7 {[%clk 0:02:48]} 11. c4 {[%clk 0:02:41]}  Nf5 {[%clk 0:02:26]} 12. a3 {[%clk 0:02:29]}  Nd4 {[%clk 0:02:20]} 13. b4 {[%clk 0:02:22]}  Nxf3+ {[%clk 0:02:19]} 14. Qxf3 {[%clk 0:02:20]}  Bd4 {[%clk 0:02:20]} 15. Rb1 {[%clk 0:02:19]}  f5 {[%clk 0:02:16]} 16. Bb2 {[%clk 0:02:12]}  Bxb2 {[%clk 0:02:09]} 17. Rxb2 {[%clk 0:02:11]}  a5 {[%clk 0:01:57]} 18. Bb3 {[%clk 0:02:08]}  axb4 {[%clk 0:01:56]} 19. axb4 {[%clk 0:02:08]}  Bd7 {[%clk 0:01:44]} 20. c5 {[%clk 0:02:02]}  Bb5 {[%clk 0:01:38]} 21. Bc4 {[%clk 0:01:58]}  e4 {[%clk 0:01:33]} 22. Qe2 {[%clk 0:01:53]}  Bxc4 {[%clk 0:01:22]} 23. dxc4 {[%clk 0:01:53]}  Qf6 {[%clk 0:01:22]} 24. cxd6 {[%clk 0:01:27]}  cxd6 {[%clk 0:01:21]} 25. Rc2 {[%clk 0:01:26]}  Qe5 {[%clk 0:00:58]} 26. Rd1 {[%clk 0:01:23]}  f4 {[%clk 0:00:55]} 27. Qg4 {[%clk 0:00:52]}  Rae8 {[%clk 0:00:40]} 28. c5 {[%clk 0:00:47]}  e3 {[%clk 0:00:34]} 29. Qf3 {[%clk 0:00:36]}  Ra8 {[%clk 0:00:09]} 30. c6 {[%clk 0:00:34]}  bxc6 {[%clk 0:00:04]} 31. dxc6 {[%clk 0:00:33]}  Ra1 {[%clk 0:00:03]} 32. Rxa1 {[%clk 0:00:24]}  Qxa1+ {[%clk 0:00:04]} 33. Kh2 {[%clk 0:00:24]}  Qd4 {[%clk 0:00:01]} 34. c7 {[%clk 0:00:20]}  Rc8 {[%clk 0:00:01]} 35. Qb7 {[%clk 0:00:19]} 1-0


[Site "https://www.chess.com"]

[Event "Titled Tuesday Blitz March 28 Early 2023"]
[White "Castellanos Villela, Alejandro"]
[Black "Levine, David"]
[WhiteFideId "3446379"]
[BlackFideId "2011611"]
[WhiteElo "2102"]
[BlackElo "2114"]
[Result "1-0"]
[Round "01"]
[TimeControl "180+2"]
[Date "2023.03.28"]
[WhiteClock "0:02:02"]
[BlackClock "0:01:10"]

1. e4 {[%clk 0:03:00]}  e5 {[%clk 0:02:59]} 2. Nf3 {[%clk 0:03:00]}  Nc6 {[%clk 0:02:59]} 3. Nc3 {[%clk 0:03:00]}  Nf6 {[%clk 0:02:59]} 4. Bb5 {[%clk 0:02:59]}  Bb4 {[%clk 0:02:56]} 5. O-O {[%clk 0:02:58]}  Bxc3 {[%clk 0:02:53]} 6. bxc3 {[%clk 0:02:58]}  d6 {[%clk 0:02:53]} 7. Re1 {[%clk 0:02:56]}  O-O {[%clk 0:02:50]} 8. h3 {[%clk 0:02:54]}  Ne7 {[%clk 0:02:48]} 9. d4 {[%clk 0:02:54]}  Ng6 {[%clk 0:02:46]} 10. a4 {[%clk 0:02:49]}  c6 {[%clk 0:02:46]} 11. Bf1 {[%clk 0:02:48]}  Qa5 {[%clk 0:02:42]} 12. Ba3 {[%clk 0:02:44]}  Re8 {[%clk 0:02:38]} 13. Bxd6 {[%clk 0:02:42]}  exd4 {[%clk 0:02:27]} 14. e5 {[%clk 0:02:35]}  Nd5 {[%clk 0:02:15]} 15. cxd4 {[%clk 0:02:34]}  Be6 {[%clk 0:02:03]} 16. c4 {[%clk 0:02:33]}  Ndf4 {[%clk 0:02:02]} 17. Qd2 {[%clk 0:02:26]}  Qd8 {[%clk 0:01:57]} 18. Kh2 {[%clk 0:02:18]}  Bf5 {[%clk 0:01:31]} 19. g3 {[%clk 0:02:14]}  Ne6 {[%clk 0:01:29]} 20. g4 {[%clk 0:02:12]}  Bxg4 {[%clk 0:01:28]} 21. hxg4 {[%clk 0:02:11]}  Nef4 {[%clk 0:01:28]} 22. Re4 {[%clk 0:02:03]}  Ne6 {[%clk 0:01:16]} 23. g5 {[%clk 0:02:02]}  Nxg5 {[%clk 0:01:10]} 24. Nxg5 {[%clk 0:02:02]} 1-0


[Site "https://www.chess.com"]